[Event "Live Chess"]
[Site "Chess.com"]
[Date "2023.05.21"]
[Round "-"]
[White "lHolyDiverl"]
[Black "AbilifyXL"]
[Result "0-1"]
[WhiteElo "555"]
[BlackElo "1961"]
[TimeControl "300"]
[EndTime "5:07:14 PDT"]
[Termination "AbilifyXL won on time"]

1. d4 {[%clk 0:04:56.3]} 1... d5 {[%clk 0:04:59.9]} 2. Nc3 {[%clk 0:04:55.8]}
2... c6 {[%clk 0:04:59.1]} 3. Bf4 {[%clk 0:04:55.2]} 3... Nf6 {[%clk 0:04:58.3]}
4. e3 {[%clk 0:04:54]} 4... Bg4 {[%clk 0:04:57.4]} 5. Be2 {[%clk 0:04:49.7]}
5... Bxe2 {[%clk 0:04:56.2]} 6. Ngxe2 {[%clk 0:04:48.6]} 6... e6 {[%clk
0:04:56.1]} 7. O-O {[%clk 0:04:47.7]} 7... Bd6 {[%clk 0:04:55.6]} 8. Bg3 {[%clk
0:04:41.9]} 8... O-O {[%clk 0:04:54.2]} 9. Nf4 {[%clk 0:04:32.8]} 9... Qc7
{[%clk 0:04:51]} 10. Nce2 {[%clk 0:04:26.2]} 10... Nbd7 {[%clk 0:04:49.3]} 11.
a4 {[%clk 0:04:08.7]} 11... Ne4 {[%clk 0:04:46.5]} 12. b3 {[%clk 0:03:31.3]}
12... h6 {[%clk 0:04:42.9]} 13. Qd3 {[%clk 0:03:18.5]} 13... Rae8 {[%clk
0:04:40.3]} 14. Nc3 {[%clk 0:03:16.9]} 14... Nxg3 {[%clk 0:04:34.1]} 15. fxg3
{[%clk 0:03:13.5]} 15... e5 {[%clk 0:04:32.1]} 16. Nfe2 {[%clk 0:02:26.5]} 16...
Re7 {[%clk 0:04:12.8]} 17. e4 {[%clk 0:02:09.6]} 17... dxe4 {[%clk 0:04:05.8]}
18. Nxe4 {[%clk 0:02:06.6]} 18... exd4 {[%clk 0:04:02.9]} 19. Nxd4 {[%clk
0:01:39.6]} 19... Nc5 {[%clk 0:04:00.6]} 20. Nxc5 {[%clk 0:01:25.9]} 20... Bxc5
{[%clk 0:03:59.3]} 21. Rae1 {[%clk 0:01:17.3]} 21... Rd7 {[%clk 0:03:55.2]} 22.
Re2 {[%clk 0:01:04.6]} 22... Bxd4+ {[%clk 0:03:53.6]} 23. Kh1 {[%clk 0:01:00.5]}
23... Bf6 {[%clk 0:03:47.6]} 24. Qf5 {[%clk 0:00:44.6]} 24... Rd6 {[%clk
0:03:46.2]} 25. Rfe1 {[%clk 0:00:41.7]} 25... Qd7 {[%clk 0:03:42.3]} 26. Qxd7
{[%clk 0:00:32.8]} 26... Rxd7 {[%clk 0:03:41.3]} 27. Re8 {[%clk 0:00:30.9]}
27... Rxe8 {[%clk 0:03:28.8]} 28. Rxe8+ {[%clk 0:00:29.9]} 28... Kh7 {[%clk
0:03:28]} 29. h3 {[%clk 0:00:25.4]} 29... Kg6 {[%clk 0:03:23.1]} 30. Ra8 {[%clk
0:00:20.3]} 30... a6 {[%clk 0:03:21.6]} 31. Re8 {[%clk 0:00:18.3]} 31... Rd2
{[%clk 0:03:07.6]} 32. Re4 {[%clk 0:00:11]} 32... Rxc2 {[%clk 0:03:05.1]} 33.
Rg4+ {[%clk 0:00:09.5]} 33... Kh7 {[%clk 0:03:03.4]} 34. Re4 {[%clk 0:00:04.4]}
34... Rc3 {[%clk 0:03:01]} 35. Re7 {[%clk 0:00:03.9]} 35... Rxb3 {[%clk
0:02:59]} 36. Rxf7 {[%clk 0:00:03]} 36... c5 {[%clk 0:02:57.9]} 37. Rc7 {[%clk
0:00:00.8]} 37... Bd4 {[%clk 0:02:55.3]} 0-1

[Event "Live Chess"]
[Site "Chess.com"]
[Date "2023.05.21"]
[Round "-"]
[White "seasidecastle27"]
[Black "OleksiyJr1"]
[Result "1-0"]
[WhiteElo "1845"]
[BlackElo "1005"]
[TimeControl "300"]
[EndTime "5:07:43 PDT"]
[Termination "seasidecastle27 won by resignation"]

1. d4 {[%clk 0:04:56.8]} 1... Nf6 {[%clk 0:04:57.9]} 2. Nf3 {[%clk 0:04:55.1]}
2... c6 {[%clk 0:04:45.2]} 3. Bf4 {[%clk 0:04:45.4]} 3... d5 {[%clk 0:04:44.2]}
4. e3 {[%clk 0:04:43.7]} 4... Nbd7 {[%clk 0:04:43.6]} 5. Bd3 {[%clk 0:04:42.1]}
5... Nb6 {[%clk 0:04:42.8]} 6. Nbd2 {[%clk 0:04:40.4]} 6... g6 {[%clk
0:04:42.2]} 7. O-O {[%clk 0:04:38.3]} 7... Bf5 {[%clk 0:04:41.7]} 8. Bxf5 {[%clk
0:04:34.8]} 8... gxf5 {[%clk 0:04:41.6]} 9. Ne5 {[%clk 0:04:27.6]} 9... e6
{[%clk 0:04:39.8]} 10. c4 {[%clk 0:04:24.5]} 10... dxc4 {[%clk 0:04:33.3]} 11.
Ndxc4 {[%clk 0:04:22.8]} 11... Nxc4 {[%clk 0:04:32.1]} 12. Nxc4 {[%clk 0:04:21]}
12... Qd5 {[%clk 0:04:28.7]} 13. Rc1 {[%clk 0:04:13.1]} 13... O-O-O {[%clk
0:04:26.5]} 14. Qa4 {[%clk 0:03:56.7]} 14... Rd7 {[%clk 0:04:15.6]} 15. Ne5
{[%clk 0:03:53.3]} 15... Rd8 {[%clk 0:04:11.1]} 16. Qxa7 {[%clk 0:03:44.2]}
16... Bd6 {[%clk 0:04:08.1]} 17. b4 {[%clk 0:03:29.1]} 17... Bxe5 {[%clk
0:04:05.8]} 18. Bxe5 {[%clk 0:03:26.9]} 1-0

[Event "Live Chess"]
[Site "Chess.com"]
[Date "2023.05.21"]
[Round "-"]
[White "LL220284LL"]
[Black "hturner40"]
[Result "1-0"]
[WhiteElo "2329"]
[BlackElo "1772"]
[TimeControl "300"]
[EndTime "5:07:50 PDT"]
[Termination "LL220284LL won by checkmate"]

1. d4 {[%clk 0:04:59]} 1... Nf6 {[%clk 0:04:57.8]} 2. Bg5 {[%clk 0:04:57.8]}
2... g6 {[%clk 0:04:53.7]} 3. Nd2 {[%clk 0:04:56]} 3... Bg7 {[%clk 0:04:53.1]}
4. e3 {[%clk 0:04:54.3]} 4... O-O {[%clk 0:04:51.1]} 5. Ngf3 {[%clk 0:04:53.8]}
5... d5 {[%clk 0:04:46]} 6. Bd3 {[%clk 0:04:52.5]} 6... c5 {[%clk 0:04:44.4]} 7.
c3 {[%clk 0:04:52.1]} 7... Nc6 {[%clk 0:04:43.2]} 8. O-O {[%clk 0:04:50.1]} 8...
Nd7 {[%clk 0:04:26.5]} 9. Re1 {[%clk 0:04:46.7]} 9... f6 {[%clk 0:04:23.6]} 10.
Bh4 {[%clk 0:04:45.2]} 10... e5 {[%clk 0:04:18.6]} 11. dxe5 {[%clk 0:04:42.8]}
11... Ndxe5 {[%clk 0:04:16.2]} 12. Nxe5 {[%clk 0:04:41.3]} 12... Nxe5 {[%clk
0:04:14.2]} 13. Bc2 {[%clk 0:04:40.3]} 13... Qb6 {[%clk 0:03:56.3]} 14. Nb3
{[%clk 0:04:25.3]} 14... Be6 {[%clk 0:03:46.8]} 15. a4 {[%clk 0:04:19.5]} 15...
a5 {[%clk 0:03:28.6]} 16. Rb1 {[%clk 0:04:13.3]} 16... Rad8 {[%clk 0:03:09.1]}
17. Nd2 {[%clk 0:04:05.9]} 17... d4 {[%clk 0:03:00]} 18. exd4 {[%clk 0:04:02.1]}
18... cxd4 {[%clk 0:02:58.5]} 19. cxd4 {[%clk 0:03:58.1]} 19... Qxd4 {[%clk
0:02:51.4]} 20. Ne4 {[%clk 0:03:56.2]} 20... Bf5 {[%clk 0:02:20.6]} 21. Qxd4
{[%clk 0:03:44.3]} 21... Rxd4 {[%clk 0:02:18.4]} 22. Bb3+ {[%clk 0:03:40.1]}
22... Kh8 {[%clk 0:02:13.7]} 23. f3 {[%clk 0:03:35.6]} 23... Bxe4 {[%clk
0:02:00.6]} 24. Rxe4 {[%clk 0:03:33.5]} 24... Rd2 {[%clk 0:01:56.4]} 25. Be1
{[%clk 0:03:30.4]} 25... Rdd8 {[%clk 0:01:40.2]} 26. Bxa5 {[%clk 0:03:28.8]}
26... Rd3 {[%clk 0:01:22.8]} 27. Bc2 {[%clk 0:03:26.4]} 27... Rd5 {[%clk
0:01:19.6]} 28. Bc3 {[%clk 0:03:24.7]} 28... f5 {[%clk 0:01:14.9]} 29. Re2
{[%clk 0:03:22.1]} 29... Nd3 {[%clk 0:01:02.6]} 30. Bxg7+ {[%clk 0:03:11.5]}
30... Kxg7 {[%clk 0:00:56.5]} 31. Rd1 {[%clk 0:03:08.8]} 31... Nf4 {[%clk
0:00:47.3]} 32. Re7+ {[%clk 0:03:04.2]} 32... Kf6 {[%clk 0:00:44.9]} 33. Rxd5
{[%clk 0:03:02.2]} 33... Nxd5 {[%clk 0:00:43.3]} 34. Rxb7 {[%clk 0:02:59.8]}
34... Rc8 {[%clk 0:00:35.9]} 35. Bb3 {[%clk 0:02:55.2]} 35... Ne3 {[%clk
0:00:27.2]} 36. f4 {[%clk 0:02:48.6]} 36... Rc1+ {[%clk 0:00:17.3]} 37. Kf2
{[%clk 0:02:47.5]} 37... Ng4+ {[%clk 0:00:16]} 38. Ke2 {[%clk 0:02:46.5]} 38...
Rg1 {[%clk 0:00:10.8]} 39. Rf7# {[%clk 0:02:45.1]} 1-0

[Event "Live Chess"]
[Site "Chess.com"]
[Date "2023.05.21"]
[Round "-"]
[White "MJMykh"]
[Black "BJAW87"]
[Result "0-1"]
[WhiteElo "1168"]
[BlackElo "1452"]
[TimeControl "300"]
[EndTime "5:07:50 PDT"]
[Termination "BJAW87 won by checkmate"]

1. e4 {[%clk 0:04:59]} 1... c6 {[%clk 0:04:59]} 2. Nf3 {[%clk 0:04:57.5]} 2...
d5 {[%clk 0:04:58.4]} 3. exd5 {[%clk 0:04:56.7]} 3... cxd5 {[%clk 0:04:58.3]} 4.
Nc3 {[%clk 0:04:56.6]} 4... d4 {[%clk 0:04:56.7]} 5. Nb1 {[%clk 0:04:54.8]} 5...
e5 {[%clk 0:04:55]} 6. c3 {[%clk 0:04:54]} 6... Nc6 {[%clk 0:04:45.8]} 7. cxd4
{[%clk 0:04:53]} 7... exd4 {[%clk 0:04:45.7]} 8. Bb5 {[%clk 0:04:50.2]} 8... Be7
{[%clk 0:04:43.3]} 9. Bxc6+ {[%clk 0:04:48.4]} 9... bxc6 {[%clk 0:04:41.8]} 10.
O-O {[%clk 0:04:48.1]} 10... Nf6 {[%clk 0:04:38.4]} 11. d3 {[%clk 0:04:46]}
11... O-O {[%clk 0:04:37]} 12. Bg5 {[%clk 0:04:44.8]} 12... h6 {[%clk
0:04:34.6]} 13. Bxf6 {[%clk 0:04:43]} 13... Bxf6 {[%clk 0:04:34.5]} 14. Nbd2
{[%clk 0:04:41.1]} 14... Bb7 {[%clk 0:04:28.5]} 15. Nc4 {[%clk 0:04:37.9]} 15...
c5 {[%clk 0:04:18.7]} 16. Nce5 {[%clk 0:04:28.1]} 16... Re8 {[%clk 0:04:09.6]}
17. Re1 {[%clk 0:04:17.8]} 17... Qc7 {[%clk 0:03:51.3]} 18. Nc4 {[%clk
0:04:10.5]} 18... Bd5 {[%clk 0:03:25.2]} 19. Rxe8+ {[%clk 0:04:08.1]} 19... Rxe8
{[%clk 0:03:25.1]} 20. g3 {[%clk 0:03:49.6]} 20... Qc6 {[%clk 0:02:55.9]} 21.
Kg2 {[%clk 0:03:46.8]} 21... Be6 {[%clk 0:02:39.1]} 22. Na5 {[%clk 0:03:37.2]}
22... Qb5 {[%clk 0:02:34.3]} 23. Nb3 {[%clk 0:03:31.8]} 23... a5 {[%clk
0:02:29.7]} 24. Rb1 {[%clk 0:03:27.1]} 24... Bg4 {[%clk 0:02:23.4]} 25. h3
{[%clk 0:03:21.7]} 25... Bh5 {[%clk 0:02:20.8]} 26. g4 {[%clk 0:03:20.2]} 26...
Bg6 {[%clk 0:02:20.4]} 27. Nc1 {[%clk 0:03:15.7]} 27... c4 {[%clk 0:02:11.7]}
28. Ne1 {[%clk 0:03:09.4]} 28... c3 {[%clk 0:02:09.4]} 29. Qc2 {[%clk
0:03:02.2]} 29... Rxe1 {[%clk 0:02:03.9]} 30. b3 {[%clk 0:02:54.7]} 30... Qd5+
{[%clk 0:01:52.9]} 31. f3 {[%clk 0:02:51.2]} 31... h5 {[%clk 0:01:42.5]} 32. Kf2
{[%clk 0:02:42.1]} 32... Rh1 {[%clk 0:01:38.4]} 33. Kg2 {[%clk 0:02:39.6]} 33...
Re1 {[%clk 0:01:34.9]} 34. Kf2 {[%clk 0:02:38.1]} 34... Re8 {[%clk 0:01:34.4]}
35. Ne2 {[%clk 0:02:31.8]} 35... hxg4 {[%clk 0:01:32.5]} 36. hxg4 {[%clk
0:02:30.3]} 36... Qd6 {[%clk 0:01:24.5]} 37. f4 {[%clk 0:02:21.3]} 37... Bh4+
{[%clk 0:01:20.3]} 38. Kf3 {[%clk 0:02:18.1]} 38... Qd5# {[%clk 0:01:18.2]} 0-1

[Event "Live Chess"]
[Site "Chess.com"]
[Date "2023.05.21"]
[Round "-"]
[White "ViktorTheCoolBoy"]
[Black "djw60"]
[Result "1/2-1/2"]
[WhiteElo "2472"]
[BlackElo "2162"]
[TimeControl "300"]
[EndTime "5:07:52 PDT"]
[Termination "Game drawn by repetition"]

1. d4 {[%clk 0:04:58.1]} 1... Nf6 {[%clk 0:04:57.7]} 2. c4 {[%clk 0:04:57.3]}
2... e6 {[%clk 0:04:56.4]} 3. Nc3 {[%clk 0:04:56.7]} 3... Bb4 {[%clk 0:04:55.5]}
4. f3 {[%clk 0:04:54.4]} 4... O-O {[%clk 0:04:50.4]} 5. e4 {[%clk 0:04:51.7]}
5... d5 {[%clk 0:04:48.2]} 6. e5 {[%clk 0:04:50.7]} 6... Nfd7 {[%clk 0:04:46.2]}
7. cxd5 {[%clk 0:04:49.9]} 7... exd5 {[%clk 0:04:44.9]} 8. Bd3 {[%clk
0:04:49.1]} 8... c5 {[%clk 0:04:37.3]} 9. Kf2 {[%clk 0:04:39.4]} 9... cxd4
{[%clk 0:04:32.7]} 10. Nxd5 {[%clk 0:04:38.2]} 10... Nc6 {[%clk 0:04:23.7]} 11.
Nxb4 {[%clk 0:04:35.2]} 11... Nxb4 {[%clk 0:04:22.4]} 12. f4 {[%clk 0:04:34.8]}
12... Nc5 {[%clk 0:04:17.5]} 13. Bb1 {[%clk 0:04:32]} 13... d3 {[%clk
0:04:09.9]} 14. Nf3 {[%clk 0:04:30.6]} 14... Bf5 {[%clk 0:04:05.1]} 15. Be3
{[%clk 0:04:28.9]} 15... Ne4+ {[%clk 0:04:00.3]} 16. Kg1 {[%clk 0:04:27.6]}
16... Rc8 {[%clk 0:03:50.3]} 17. Nd4 {[%clk 0:04:23.2]} 17... Nc2 {[%clk
0:03:36.3]} 18. Nxc2 {[%clk 0:04:17.7]} 18... dxc2 {[%clk 0:03:34.7]} 19. Bxc2
{[%clk 0:04:17.1]} 19... Ng3 {[%clk 0:03:18.7]} 20. Qxd8 {[%clk 0:04:13.9]}
20... Rfxd8 {[%clk 0:03:16.6]} 21. hxg3 {[%clk 0:04:05.4]} 21... Rxc2 {[%clk
0:03:14.3]} 22. Kh2 {[%clk 0:03:57.6]} 22... Be4 {[%clk 0:03:09]} 23. Rhd1
{[%clk 0:03:55.9]} 23... Rxg2+ {[%clk 0:03:07.1]} 24. Kh3 {[%clk 0:03:54.7]}
24... Rxd1 {[%clk 0:02:53.6]} 25. Rxd1 {[%clk 0:03:53.1]} 25... h5 {[%clk
0:02:49.6]} 26. Rd8+ {[%clk 0:03:51.3]} 26... Kh7 {[%clk 0:02:48.4]} 27. Rd4
{[%clk 0:03:30.7]} 27... Bf3 {[%clk 0:02:38]} 28. f5 {[%clk 0:03:29.2]} 28...
Re2 {[%clk 0:02:35.7]} 29. Bf4 {[%clk 0:03:24.1]} 29... Bg4+ {[%clk 0:02:30.6]}
30. Kh4 {[%clk 0:03:23.2]} 30... f6 {[%clk 0:02:29.6]} 31. exf6 {[%clk
0:03:16.6]} 31... gxf6 {[%clk 0:02:28.7]} 32. Rd2 {[%clk 0:03:15.8]} 32... Rxd2
{[%clk 0:02:24.1]} 33. Bxd2 {[%clk 0:03:14.5]} 33... Bxf5 {[%clk 0:02:22.1]} 34.
Kxh5 {[%clk 0:03:13.8]} 34... Bg6+ {[%clk 0:02:20.3]} 35. Kg4 {[%clk 0:03:11.9]}
35... Bf7 {[%clk 0:02:18.4]} 36. Kf5 {[%clk 0:03:10.2]} 36... Bxa2 {[%clk
0:02:16.3]} 37. Kxf6 {[%clk 0:03:09.5]} 37... Bb1 {[%clk 0:02:08.7]} 38. g4
{[%clk 0:03:08.6]} 38... b6 {[%clk 0:02:05]} 39. g5 {[%clk 0:03:07.6]} 39... a5
{[%clk 0:02:03.5]} 40. Ke5 {[%clk 0:03:03.8]} 40... a4 {[%clk 0:02:02.4]} 41.
Kd6 {[%clk 0:02:59.9]} 41... b5 {[%clk 0:02:01.4]} 42. Kc5 {[%clk 0:02:59.3]}
42... Bd3 {[%clk 0:02:00.5]} 43. Kb4 {[%clk 0:02:58.7]} 43... Kg6 {[%clk
0:01:59.5]} 44. Be3 {[%clk 0:02:58]} 44... Kf5 {[%clk 0:01:58.5]} 45. Bd2 {[%clk
0:02:57.9]} 45... Kg6 {[%clk 0:01:57.8]} 46. Be3 {[%clk 0:02:57.3]} 46... Kf5
{[%clk 0:01:57.1]} 47. Bd2 {[%clk 0:02:57.2]} 47... Kg6 {[%clk 0:01:56.4]}
1/2-1/2

[Event "Live Chess"]
[Site "Chess.com"]
[Date "2023.05.21"]
[Round "-"]
[White "davigator"]
[Black "gmnorfolk"]
[Result "1/2-1/2"]
[WhiteElo "2326"]
[BlackElo "2121"]
[TimeControl "300"]
[EndTime "5:07:56 PDT"]
[Termination "Game drawn by repetition"]

1. e4 {[%clk 0:04:59.1]} 1... e5 {[%clk 0:04:57.1]} 2. Nf3 {[%clk 0:04:57.3]}
2... Nc6 {[%clk 0:04:55.6]} 3. Bc4 {[%clk 0:04:54.4]} 3... Nf6 {[%clk 0:04:54]}
4. d3 {[%clk 0:04:52.9]} 4... d5 {[%clk 0:04:48.2]} 5. exd5 {[%clk 0:04:51.1]}
5... Nxd5 {[%clk 0:04:45.1]} 6. O-O {[%clk 0:04:50.5]} 6... Nb6 {[%clk
0:04:43.8]} 7. Bb5 {[%clk 0:04:49.2]} 7... Bd6 {[%clk 0:04:40.5]} 8. Re1 {[%clk
0:04:47.4]} 8... f6 {[%clk 0:04:36.7]} 9. c3 {[%clk 0:04:46]} 9... O-O {[%clk
0:04:35.3]} 10. Nbd2 {[%clk 0:04:41.6]} 10... Bg4 {[%clk 0:04:32.6]} 11. Ne4
{[%clk 0:04:39.2]} 11... Be7 {[%clk 0:04:30.3]} 12. h3 {[%clk 0:04:30.2]} 12...
Bh5 {[%clk 0:04:28.8]} 13. Ng3 {[%clk 0:04:29]} 13... Bg6 {[%clk 0:04:25.9]} 14.
Bxc6 {[%clk 0:04:27]} 14... bxc6 {[%clk 0:04:24.1]} 15. d4 {[%clk 0:04:26.6]}
15... exd4 {[%clk 0:04:14.6]} 16. Nxd4 {[%clk 0:04:23.9]} 16... Qd7 {[%clk
0:04:00.3]} 17. Qf3 {[%clk 0:04:17.6]} 17... c5 {[%clk 0:03:49.6]} 18. Ndf5
{[%clk 0:04:15]} 18... Rfe8 {[%clk 0:03:43.1]} 19. Be3 {[%clk 0:04:08.1]} 19...
Bf8 {[%clk 0:03:39.1]} 20. Rad1 {[%clk 0:04:04.4]} 20... Qb5 {[%clk 0:03:36.5]}
21. b3 {[%clk 0:04:02.3]} 21... Qa5 {[%clk 0:03:32]} 22. a4 {[%clk 0:03:44.5]}
22... Qxc3 {[%clk 0:03:28.9]} 23. Qc6 {[%clk 0:03:29.9]} 23... Qxb3 {[%clk
0:03:18.6]} 24. Bxc5 {[%clk 0:03:19]} 24... Qc4 {[%clk 0:02:58.5]} 25. Ne7+
{[%clk 0:02:42.9]} 25... Bxe7 {[%clk 0:02:48.7]} 26. Rc1 {[%clk 0:02:33]} 26...
Qf7 {[%clk 0:02:31.1]} 27. a5 {[%clk 0:02:17.3]} 27... Bxc5 {[%clk 0:02:25.2]}
28. Qxc5 {[%clk 0:02:15.4]} 28... Rxe1+ {[%clk 0:02:18.6]} 29. Rxe1 {[%clk
0:02:14.1]} 29... Qd5 {[%clk 0:02:16.1]} 30. Qc3 {[%clk 0:02:06.4]} 30... Nc4
{[%clk 0:02:08.2]} 31. Rc1 {[%clk 0:02:04.4]} 31... Bf7 {[%clk 0:02:04.6]} 32.
Qb4 {[%clk 0:01:59.6]} 32... Qxa5 {[%clk 0:01:56.4]} 33. Qe7 {[%clk 0:01:57.4]}
33... Qe5 {[%clk 0:01:49.3]} 34. Qd7 {[%clk 0:01:52.2]} 34... Qd6 {[%clk
0:01:45.2]} 35. Qa4 {[%clk 0:01:48.8]} 35... Qd5 {[%clk 0:01:41.1]} 36. Nf1
{[%clk 0:01:41.2]} 36... c5 {[%clk 0:01:36.1]} 37. Ne3 {[%clk 0:01:37.4]} 37...
Nxe3 {[%clk 0:01:34.9]} 38. fxe3 {[%clk 0:01:36.8]} 38... c4 {[%clk 0:01:29.1]}
39. Qa6 {[%clk 0:01:32.6]} 39... Qd2 {[%clk 0:01:24.4]} 40. Rf1 {[%clk
0:01:31.5]} 40... Qxe3+ {[%clk 0:01:23.3]} 41. Kh1 {[%clk 0:01:31.3]} 41... Qe7
{[%clk 0:01:21.4]} 42. Qa5 {[%clk 0:01:27.6]} 42... Rc8 {[%clk 0:01:16.7]} 43.
Re1 {[%clk 0:01:26.7]} 43... Qc7 {[%clk 0:01:13.6]} 44. Qc3 {[%clk 0:01:23.8]}
44... Qc5 {[%clk 0:01:09.3]} 45. Ra1 {[%clk 0:01:22]} 45... Qb6 {[%clk
0:00:59.5]} 46. Rd1 {[%clk 0:01:07.9]} 46... Qb3 {[%clk 0:00:55.9]} 47. Qa5
{[%clk 0:01:07.2]} 47... c3 {[%clk 0:00:53]} 48. Rd8+ {[%clk 0:01:05.2]} 48...
Be8 {[%clk 0:00:41.3]} 49. Rxc8 {[%clk 0:01:03.1]} 49... Qd1+ {[%clk 0:00:36.6]}
50. Kh2 {[%clk 0:01:00.9]} 50... Qd6+ {[%clk 0:00:35.3]} 51. Kh1 {[%clk
0:00:58.6]} 51... Qd1+ {[%clk 0:00:31.7]} 52. Kh2 {[%clk 0:00:57.7]} 52... Qd6+
{[%clk 0:00:30.7]} 53. Kg1 {[%clk 0:00:51.5]} 53... Qd1+ {[%clk 0:00:28.7]} 54.
Kh2 {[%clk 0:00:46.9]} 1/2-1/2

[Event "Live Chess"]
[Site "Chess.com"]
[Date "2023.05.21"]
[Round "-"]
[White "Crowded_House"]
[Black "f4nomore"]
[Result "0-1"]
[WhiteElo "1616"]
[BlackElo "1395"]
[TimeControl "300"]
[EndTime "5:07:59 PDT"]
[Termination "f4nomore won by checkmate"]

1. d4 {[%clk 0:04:58.7]} 1... d6 {[%clk 0:04:58.9]} 2. Bg5 {[%clk 0:04:56.9]}
2... g6 {[%clk 0:04:56.7]} 3. Nf3 {[%clk 0:04:54.1]} 3... Bg7 {[%clk 0:04:55.6]}
4. c3 {[%clk 0:04:52.3]} 4... Nd7 {[%clk 0:04:53.5]} 5. e3 {[%clk 0:04:49.9]}
5... c5 {[%clk 0:04:52]} 6. dxc5 {[%clk 0:04:45.5]} 6... Nxc5 {[%clk 0:04:50.3]}
7. Nbd2 {[%clk 0:04:41.3]} 7... Bd7 {[%clk 0:04:46.2]} 8. Nb3 {[%clk 0:04:40.3]}
8... Ba4 {[%clk 0:04:33.6]} 9. Nfd2 {[%clk 0:04:29.9]} 9... Nf6 {[%clk
0:04:28.5]} 10. Qc1 {[%clk 0:04:10.5]} 10... O-O {[%clk 0:04:22.2]} 11. Nxc5
{[%clk 0:04:08.5]} 11... dxc5 {[%clk 0:04:19.7]} 12. b3 {[%clk 0:03:57.9]} 12...
Bc6 {[%clk 0:04:16.6]} 13. Rb1 {[%clk 0:03:54.1]} 13... h6 {[%clk 0:04:08.3]}
14. Bf4 {[%clk 0:03:46]} 14... g5 {[%clk 0:04:06.2]} 15. Bg3 {[%clk 0:03:44.4]}
15... Nh5 {[%clk 0:04:04.2]} 16. Qd1 {[%clk 0:03:10.9]} 16... Nxg3 {[%clk
0:03:55.7]} 17. hxg3 {[%clk 0:03:09.9]} 17... Qd6 {[%clk 0:03:52.4]} 18. Nf3
{[%clk 0:03:07.2]} 18... Bxc3+ {[%clk 0:03:41.8]} 19. Nd2 {[%clk 0:02:54.9]}
19... Rad8 {[%clk 0:03:34.3]} 20. Rc1 {[%clk 0:02:50.3]} 20... Bxd2+ {[%clk
0:03:29.4]} 21. Qxd2 {[%clk 0:02:48.1]} 21... Qxd2# {[%clk 0:03:25.5]} 0-1

[Event "Live Chess"]
[Site "Chess.com"]
[Date "2023.05.21"]
[Round "-"]
[White "garyjc"]
[Black "GEMdzq"]
[Result "0-1"]
[WhiteElo "1045"]
[BlackElo "2285"]
[TimeControl "300"]
[EndTime "5:08:12 PDT"]
[Termination "GEMdzq won by resignation"]

1. e4 {[%clk 0:04:56.2]} 1... d6 {[%clk 0:04:57.8]} 2. d4 {[%clk 0:04:52.3]}
2... Nf6 {[%clk 0:04:57.1]} 3. Nc3 {[%clk 0:04:50.7]} 3... g6 {[%clk 0:04:56.2]}
4. Bd3 {[%clk 0:04:44.9]} 4... Bg7 {[%clk 0:04:54.6]} 5. Nf3 {[%clk 0:04:38.1]}
5... O-O {[%clk 0:04:44.5]} 6. h3 {[%clk 0:04:21.2]} 6... Na6 {[%clk 0:04:39.4]}
7. a3 {[%clk 0:04:15.3]} 7... c5 {[%clk 0:04:38.2]} 8. Ne2 {[%clk 0:03:53.9]}
8... c4 {[%clk 0:04:34]} 9. Bxc4 {[%clk 0:03:49.9]} 9... Nxe4 {[%clk 0:04:33.2]}
10. O-O {[%clk 0:03:37.1]} 10... Nc7 {[%clk 0:04:25.4]} 11. Re1 {[%clk
0:03:33.5]} 11... b5 {[%clk 0:04:18.3]} 12. Bd3 {[%clk 0:03:25.5]} 12... Bb7
{[%clk 0:04:15.4]} 13. Be3 {[%clk 0:03:01.8]} 13... Rc8 {[%clk 0:04:13.1]} 14.
c3 {[%clk 0:02:57]} 14... f5 {[%clk 0:04:04.8]} 15. Ng5 {[%clk 0:02:48.3]} 15...
h6 {[%clk 0:03:56]} 16. Nxe4 {[%clk 0:02:46.9]} 16... fxe4 {[%clk 0:03:54.9]}
17. Bc2 {[%clk 0:02:41.5]} 17... a6 {[%clk 0:03:51.7]} 18. Ng3 {[%clk
0:02:39.6]} 18... d5 {[%clk 0:03:46.9]} 19. Qg4 {[%clk 0:02:25.2]} 19... Qd6
{[%clk 0:03:38.8]} 20. Bf4 {[%clk 0:02:16]} 20... Rxf4 {[%clk 0:03:36.8]} 21.
Qe2 {[%clk 0:01:54.8]} 21... Rcf8 {[%clk 0:03:35.3]} 0-1

[Event "Live Chess"]
[Site "Chess.com"]
[Date "2023.05.21"]
[Round "-"]
[White "HoarseyHorsey"]
[Black "NAZRIZ1977"]
[Result "0-1"]
[WhiteElo "1486"]
[BlackElo "1971"]
[TimeControl "300"]
[EndTime "5:08:18 PDT"]
[Termination "NAZRIZ1977 won by resignation"]

1. d4 {[%clk 0:04:58.2]} 1... Nf6 {[%clk 0:04:58]} 2. c4 {[%clk 0:04:57.6]} 2...
c5 {[%clk 0:04:57]} 3. d5 {[%clk 0:04:56.7]} 3... b5 {[%clk 0:04:56.4]} 4. cxb5
{[%clk 0:04:55.6]} 4... a6 {[%clk 0:04:55.8]} 5. e3 {[%clk 0:04:55.1]} 5... g6
{[%clk 0:04:54.9]} 6. Nc3 {[%clk 0:04:53.1]} 6... Bg7 {[%clk 0:04:49.6]} 7. a4
{[%clk 0:04:48.6]} 7... O-O {[%clk 0:04:48.1]} 8. e4 {[%clk 0:04:47.7]} 8... d6
{[%clk 0:04:47.2]} 9. Bd2 {[%clk 0:04:45.9]} 9... axb5 {[%clk 0:04:46.3]} 10.
Bxb5 {[%clk 0:04:41.8]} 10... Ba6 {[%clk 0:04:45.7]} 11. Bxa6 {[%clk 0:04:40.6]}
11... Nxa6 {[%clk 0:04:44.4]} 12. Nf3 {[%clk 0:04:33.5]} 12... Qa5 {[%clk
0:04:43.2]} 13. O-O {[%clk 0:04:18.8]} 13... Rfb8 {[%clk 0:04:42.3]} 14. Rb1
{[%clk 0:04:16.7]} 14... Ne8 {[%clk 0:04:40]} 15. Nb5 {[%clk 0:04:06]} 15... Qb6
{[%clk 0:04:38.6]} 16. b3 {[%clk 0:04:02.7]} 16... Nec7 {[%clk 0:04:37]} 17.
Nxc7 {[%clk 0:03:57.5]} 17... Qxc7 {[%clk 0:04:36]} 18. Re1 {[%clk 0:03:50.6]}
18... Nb4 {[%clk 0:04:33.9]} 19. e5 {[%clk 0:03:42.4]} 19... Nd3 {[%clk
0:04:29.5]} 20. Re3 {[%clk 0:03:38.8]} 20... Nxe5 {[%clk 0:04:28.3]} 21. Nxe5
{[%clk 0:03:37.4]} 21... Bxe5 {[%clk 0:04:28.2]} 22. Rxe5 {[%clk 0:03:30.2]}
22... dxe5 {[%clk 0:04:26.9]} 23. Bh6 {[%clk 0:03:29.3]} 23... Qd6 {[%clk
0:04:24.6]} 24. Qf3 {[%clk 0:03:27.3]} 24... c4 {[%clk 0:04:21.1]} 25. Rc1
{[%clk 0:03:22.2]} 25... cxb3 {[%clk 0:04:18.4]} 26. Rc6 {[%clk 0:03:21]} 26...
b2 {[%clk 0:04:14.6]} 27. Rxd6 {[%clk 0:03:10.3]} 27... b1=Q+ {[%clk 0:04:13.3]}
0-1